bitfinex/quotes_ETHUSD_20220202
["timestamp","ask_amount","ask_price","bid_price","bid_amount"]
[1643802540247,1.04155997,2768.5,2767.7,0.74922884]
[1643802540448,0.90338,2768.4,2767.6,0.1806]
[1643802540652,0.90338,2768.4,2767.5,0.1806]
[1643802541885,0.90335,2768.3,2767.5,0.1806]
[1643802542100,0.90444577,2768.2,2767.5,0.1806]
[1643802544492,0.90444577,2768.2,2767.4,1.3158]
[1643802544892,2.71132577,2768.2,2767.4,0.1806]
[1643802545093,0.8510342,2767.6,2767.4,0.1806]
[1643802545295,0.8510342,2767.6,2767.0,7.3215]
[1643802545537,0.8510342,2767.6,2767.1,3.5]
[1643802545742,0.84946017,2767.6,2767.1,3.5]
[1643802546338,0.84946017,2767.6,2766.9,8.6767]
[1643802546540,0.84946017,2767.6,2766.9,7.47]
[1643802550692,0.90357,2767.8,2766.9,7.47]
[1643802550897,0.90357,2767.8,2766.8,3.6683]
[1643802551891,0.78312246,2767.7,2766.8,3.6683]
[1643802552693,0.78312246,2767.7,2766.7,0.1806]
[1643802553144,0.78312246,2767.7,2766.7,2.07164915]
[1643802553550,0.78312246,2767.7,2766.7,0.1806]
[1643802553744,0.78312246,2767.7,2766.7,2.06882652]
[1643802553945,0.78312246,2767.7,2766.7,2.44261312]
[1643802556147,0.78312246,2767.7,2766.7,2.06882652]
[1643802557495,0.90358,2767.5,2766.7,2.06882652]
[1643802557689,0.90358,2767.5,2766.7,2.39881755]
[1643802557892,0.90358,2767.5,2766.7,3.31422339]
[1643802559097,0.90358,2767.5,2766.7,1.09600584]
[1643802559304,0.90373,2767.3,2766.6,4.4826]
[1643802559499,1.53254354,2767.2,2766.6,1.1721]
[1643802559695,2.01324354,2767.2,2766.5,3.9718]
[1643802559895,1.53254354,2767.1,2766.5,3.9718]
[1643802560298,0.72017787,2766.8,2766.3,3.7129]
[1643802560545,0.72017787,2766.8,2766.2,5.89324655]
[1643802560546,0.90385,2766.7,2766.2,3.64324655]
[1643802560843,0.90385,2766.7,2766.2,3.2593]
[1643802561047,0.90385,2766.7,2766.1,2.0]
[1643802561247,0.90385,2766.7,2766.0,2.21354311]
[1643802561445,0.90385,2766.7,2766.0,0.98844311]
[1643802561643,0.90385,2766.7,2766.0,1.90384895]
[1643802561843,0.90385,2766.7,2766.0,2.35275598]
[1643802562047,0.90385,2766.7,2766.2,0.91540584]
[1643802562244,0.9037,2767.0,2766.3,2.84589224]
[1643802562444,0.9037,2767.0,2766.3,0.91540584]
[1643802563048,1.82666488,2767.0,2766.3,0.91540584]
[1643802564291,1.82666488,2767.0,2766.4,0.91540584]
[1643802564992,0.9037,2767.0,2766.3,0.91540584]
[1643802571693,0.9037,2767.0,2766.5,0.86320951]
[1643802573496,0.9037,2767.0,2766.9,0.35375083]
[1643802573801,1.08428,2767.4,2766.9,0.35375083]
[1643802573999,0.90358,2767.4,2766.9,0.35375083]
[1643802575198,0.90358,2767.4,2767.0,1.902416]
[1643802575449,0.90358,2767.4,2766.9,0.35375083]
[1643802576857,0.90358,2767.4,2767.0,0.80517909]
[1643802577254,0.90358,2767.4,2766.9,0.35375083]
[1643802578459,0.90358,2767.4,2767.0,0.87189688]
[1643802581705,0.90358,2767.4,2766.9,0.35375083]
[1643802582965,0.90358,2767.4,2766.9,0.35247293]
[1643802584573,0.13819997,2767.7,2766.9,0.35247293]
[1643802584777,0.13819997,2767.7,2767.0,1.87134278]
[1643802584778,1.53238999,2767.6,2767.0,1.87134278]
[1643802584972,1.53238999,2767.6,2766.9,1.26787877]
[1643802585773,1.53238999,2767.6,2766.9,0.35247293]
[1643802586798,0.3,2767.5,2766.9,0.35247293]
[1643802587301,0.43819997,2767.7,2766.9,0.35247293]
[1643802587498,1.53244491,2767.6,2766.9,0.35247293]
[1643802587703,0.90353,2767.4,2766.9,0.35247293]
[1643802588904,0.90341,2767.9,2767.0,1.96414835]
[1643802589110,1.53232395,2767.8,2767.0,2.87955419]
[1643802590306,1.53232395,2767.8,2767.5,0.40102811]
[1643802591357,1.53232395,2767.8,2767.1,1.92319508]
[1643802591557,0.90344,2767.7,2767.1,1.92319508]
[1643802591856,1.53232395,2767.6,2767.1,1.92319508]
[1643802592062,1.98748,2768.1,2767.1,1.92319508]
[1643802592257,1.53229661,2768.0,2767.1,1.92319508]
[1643802593364,0.90335,2767.9,2767.3,0.3850937]
[1643802593564,1.53229661,2767.8,2767.3,0.3850937]
[1643802593766,3.33925661,2767.8,2767.0,0.92786571]
[1643802593964,1.53229661,2767.7,2767.0,0.01245987]
[1643802594193,1.53229661,2767.7,2767.0,0.92786571]
[1643802594393,1.02287035,2768.1,2767.3,0.86379114]
[1643802594595,1.53230958,2768.0,2767.1,2.02681388]
[1643802594795,1.53230958,2768.0,2767.3,0.35935501]
[1643802595194,0.90335,2767.9,2767.3,0.35935501]
[1643802595396,1.53230958,2767.8,2767.3,0.35935501]
[1643802597797,1.83230958,2767.8,2767.3,0.35935501]
[1643802598048,2.43571958,2767.7,2767.3,0.35935501]
[1643802598248,0.90341,2767.7,2767.1,0.95367321]
[1643802598648,1.20341,2767.7,2767.1,0.95367321]
[1643802599050,0.90334,2767.9,2767.2,1.86005939]
[1643802599249,1.53230025,2767.8,2767.2,1.86005939]
[1643802599449,0.13819997,2768.5,2767.2,1.86005939]
[1643802599450,0.1806,2768.3,2767.3,0.91540584]
[1643802599652,1.5321393,2768.2,2767.4,2.50568181]
[1643802599853,1.5321393,2768.1,2767.4,2.50568181]
[1643802600053,1.5321393,2768.0,2767.9,0.36152883]
[1643802600451,0.1806,2768.4,2767.9,0.36152883]
[1643802600653,0.13819997,2768.5,2767.9,0.36152883]
[1643802600654,2.43535837,2768.3,2767.9,0.36152883]
[1643802600852,1.53210837,2768.2,2767.6,1.97279843]
[1643802601994,1.53210837,2768.2,2767.9,0.43935436]
[1643802602396,1.53210837,2768.2,2767.7,0.75192655]
[1643802602999,1.53210837,2768.2,2767.5,3.297]
[1643802603199,0.90332,2768.1,2767.5,3.297]
[1643802603400,1.53210837,2768.0,2767.7,0.37056592]
[1643802603601,1.53210837,2768.0,2767.4,3.8811]
[1643802603797,1.53210837,2768.0,2767.3,1.248]
[1643802604000,1.53210837,2768.0,2767.4,0.88738103]
[1643802604599,1.53087414,2768.0,2767.7,0.40838362]
[1643802604800,1.83087414,2768.0,2767.7,0.40838362]
[1643802605000,0.3,2768.0,2767.7,0.40838362]
[1643802605457,0.3,2768.0,2767.4,0.88738103]
[1643802605654,0.3,2768.0,2767.4,2.7684763]
[1643802606354,0.90338,2767.9,2767.3,1.248]
[1643802606556,0.90338,2767.9,2767.3,1.59952265]
[1643802606755,0.90338,2767.9,2767.3,0.35152265]
[1643802607354,0.90338,2767.9,2767.0,14.43837383]
[1643802608764,0.90338,2767.9,2767.2,0.36589442]
[1643802613849,0.90338,2767.9,2767.0,5.87236799]
[1643802614851,1.20338,2767.9,2767.1,0.34876566]
[1643802615950,0.90341,2767.8,2767.1,2.2145561]
[1643802616151,0.90341,2767.8,2767.1,2.25331111]
[1643802616350,0.3,2767.9,2767.1,2.25391522]
[1643802616551,2.38763329,2768.1,2767.1,2.25391522]
[1643802616799,2.38763329,2768.1,2767.1,0.34876566]
[1643802617200,2.38763329,2768.1,2767.6,0.42350462]
[1643802617201,0.1806,2768.1,2767.6,0.42350462]
[1643802617401,0.1806,2768.1,2767.7,1.92433234]
[1643802617603,0.1806,2768.3,2767.7,1.90785498]
[1643802617803,0.82231394,2768.5,2767.7,1.90785498]
[1643802617804,0.1806,2768.4,2767.7,1.90785498]
[1643802618007,0.13819997,2768.5,2767.7,1.90785498]
[1643802618412,0.13819997,2768.5,2767.8,0.82101874]
[1643802618609,0.31879997,2768.5,2768.1,0.37495024]
[1643802619115,1.22203997,2768.5,2768.1,0.37495024]
[1643802619511,0.31879997,2768.5,2768.1,0.37495024]
[1643802619910,0.13819997,2768.5,2768.1,0.37495024]
[1643802620310,0.13819997,2768.5,2767.8,0.82101874]
[1643802621565,0.13819997,2768.5,2768.2,0.42140551]
[1643802622273,0.13819997,2768.5,2767.9,1.85817575]
[1643802622465,0.13819997,2768.5,2767.8,0.82101874]
[1643802623069,0.13819997,2768.5,2767.9,1.90255831]
[1643802623272,0.13819997,2768.5,2768.1,0.35257554]
[1643802623870,1.08376,2768.7,2768.2,1.90531561]
[1643802624072,0.1806,2768.8,2768.1,0.35257554]
[1643802624497,1.53226632,2768.7,2768.1,0.35257554]
[1643802626398,1.53226632,2768.7,2768.1,0.35125995]
[1643802626798,2.73538632,2768.7,2768.1,0.35125995]
[1643802626999,1.53226632,2768.6,2768.1,0.35125995]
[1643802627404,2.43545632,2768.6,2768.1,0.35125995]
[1643802627601,2.43545632,2768.6,2767.8,1.00161874]
[1643802627802,1.53226632,2768.5,2767.8,1.00161874]
[1643802628249,1.53226632,2768.5,2767.9,1.85645041]
[1643802628450,1.53226632,2768.5,2768.0,0.3812233]
[1643802629051,2.43547632,2768.5,2768.0,0.3812233]
[1643802629254,1.53226632,2768.4,2768.0,0.3812233]
[1643802629851,1.53226632,2768.4,2767.8,1.00161874]
[1643802630755,1.53226632,2768.4,2767.9,0.35497064]
[1643802630952,1.53226632,2768.4,2767.9,2.22356877]
[1643802631801,1.53226632,2768.4,2767.9,0.35497064]
[1643802632004,1.53226632,2768.4,2767.9,2.22016216]
[1643802632607,0.3,2768.3,2767.8,0.1806]
[1643802632806,1.53226632,2768.2,2767.7,3.26072442]
[1643802633010,1.53226632,2768.1,2767.7,3.26072442]
[1643802633212,1.53226632,2768.4,2767.7,2.11342442]
[1643802633412,1.53229303,2768.3,2767.7,1.93282442]
[1643802633612,1.53229303,2768.2,2767.7,1.93282442]
[1643802633824,1.53229303,2768.4,2768.0,0.43875492]
[1643802634013,1.53233052,2768.3,2768.0,0.43875492]
[1643802634214,1.53233052,2768.4,2767.8,0.73450549]
[1643802634411,1.53233052,2768.3,2767.8,0.73450549]
[1643802634614,1.53233052,2768.2,2767.8,0.73450549]
[1643802634813,1.2032,2768.5,2767.8,0.73450549]
[1643802635015,1.53234589,2768.4,2767.8,0.73450549]
[1643802635449,1.53234589,2768.4,2767.8,1.15189513]
[1643802635951,1.53234589,2768.4,2767.6,2.25812718]
[1643802637150,1.53234589,2768.4,2767.7,1.25603843]
[1643802637950,2.48147493,2768.4,2767.7,1.25603843]
[1643802638154,1.53234589,2768.3,2767.6,2.25812718]
[1643802638757,1.20323,2768.2,2767.6,0.1806]
[1643802638961,1.53234589,2768.1,2767.5,4.035]
[1643802639200,1.53234589,2768.1,2767.5,4.23445619]
[1643802639396,1.53234589,2768.1,2767.5,0.38005619]
[1643802640601,2.43564589,2768.1,2767.5,0.38005619]
[1643802640799,1.53234589,2768.0,2767.5,2.21146829]
[1643802640998,1.53234589,2768.0,2767.5,1.8314121]
[1643802641198,2.10655,2768.2,2767.5,1.8314121]
[1643802641401,2.43573335,2768.1,2767.5,1.8314121]
[1643802641602,1.53245335,2768.0,2767.5,1.8314121]
[1643802641799,2.43573335,2768.0,2767.5,1.8314121]
[1643802642001,0.90328,2768.0,2767.5,1.8314121]
[1643802642599,0.90328,2768.0,2767.4,4.2862]
[1643802642802,2.73586963,2767.9,2767.4,4.2862]
[1643802643056,2.73586963,2767.9,2767.4,3.1504]
[1643802643057,0.3,2767.7,2767.4,3.1504]
[1643802643259,0.3,2767.7,2767.3,0.1806]
[1643802643656,0.92681785,2767.6,2767.3,0.1806]
[1643802646560,0.90353,2767.4,2766.8,4.36650584]
[1643802646810,0.3,2767.3,2766.8,0.1806]
[1643802647007,0.3,2767.3,2766.6,2.33920584]
[1643802647207,0.3,2767.3,2766.6,2.15860584]
[1643802647404,1.78649075,2767.1,2766.6,2.15860584]
[1643802647609,1.78649075,2767.1,2766.5,0.54395047]
[1643802647610,2.69012075,2767.1,2766.5,1.45935631]
[1643802647805,0.3,2767.0,2766.5,0.53133691]
[1643802648209,2.08649075,2767.1,2766.5,0.53133691]
[1643802648910,0.90374,2766.8,2766.5,0.53133691]
[1643802649316,1.20278073,2766.8,2766.5,0.53133691]
[1643802650012,2.10652073,2766.8,2766.5,0.53133691]
[1643802651960,1.80753,2766.7,2766.2,0.91540584]
[1643802652155,1.80753,2766.6,2766.2,0.91540584]
[1643802652360,2.7113,2766.6,2766.2,0.91540584]
[1643802652761,2.7113,2766.6,2766.1,0.91540584]
[1643802652966,3.63250342,2766.6,2766.1,0.91540584]
[1643802653161,2.7113,2766.6,2766.1,0.91540584]
[1643802653388,1.80754,2766.5,2766.1,0.91540584]
[1643802653763,0.3,2766.4,2766.1,0.91540584]
[1643802654803,0.90376,2766.3,2766.1,0.91540584]
[1643802656610,0.90376,2766.3,2766.0,0.91540584]
[1643802656807,0.90376,2766.3,2766.1,1.85056839]
[1643802657010,0.3,2766.4,2766.1,1.85056839]
[1643802657212,0.3,2766.6,2766.1,1.84896976]
[1643802657408,0.3,2766.6,2766.1,2.7643756]
[1643802657624,0.3,2766.6,2766.1,0.91540584]
[1643802658063,0.3,2766.6,2766.0,0.91540584]
[1643802658664,0.3,2766.6,2766.1,1.83849477]
[1643802658866,0.90369,2766.4,2766.1,1.83849477]
[1643802659066,0.90369,2766.4,2766.1,2.75390061]
[1643802659265,0.90369,2766.4,2766.1,1.83849477]
[1643802659972,0.90369,2766.4,2766.0,0.91540584]
[1643802660170,0.90369,2766.4,2765.9,4.05252243]
[1643802660365,0.90369,2766.4,2765.9,2.82042243]
[1643802661166,1.80747,2766.4,2765.9,0.91540584]
[1643802661367,1.80747,2766.4,2765.8,8.43675466]
[1643802661696,1.80747,2766.4,2765.8,1.66035466]
[1643802662506,1.80747,2766.4,2765.9,1.83503649]
[1643802663403,0.90369,2766.4,2765.9,2.75044233]
[1643802663603,0.90369,2766.4,2766.2,0.39138182]
[1643802667052,0.90369,2766.4,2766.0,0.91540584]
[1643802667256,0.90369,2766.4,2766.0,0.52402402]
[1643802667453,0.90369,2766.4,2765.9,1.8885799]
[1643802669058,0.90369,2766.4,2766.0,0.4371868]
[1643802669307,0.3,2766.6,2766.1,2.03349187]
[1643802669706,0.3,2766.8,2766.3,0.73094224]
[1643802669906,1.0843626,2766.9,2766.4,1.85983876]
[1643802669907,0.4807,2766.9,2766.4,1.85983876]
[1643802670111,0.1807,2766.9,2766.5,0.90844213]
[1643802670315,0.13819997,2767.4,2766.6,3.43178538]
[1643802670316,0.1807,2767.3,2766.6,3.43178538]
[1643802670509,0.90345,2767.4,2766.7,0.523]
[1643802670710,0.90345,2767.4,2766.8,2.21086865]
[1643802670908,0.90345,2767.4,2767.0,0.94259296]
[1643802671107,0.85345,2767.4,2767.1,1.85259038]
[1643802671309,0.85345,2767.4,2767.1,1.83566949]
[1643802671609,0.85345,2767.4,2767.1,0.44222363]
[1643802671812,0.85345,2767.4,2767.1,2.32035915]
[1643802672210,0.85345,2767.4,2767.0,0.94259296]
[1643802672616,0.3,2767.3,2767.0,0.94259296]
[1643802672819,0.90349,2767.2,2767.0,0.94259296]
[1643802673048,0.90349,2767.2,2766.7,1.97689898]
[1643802673254,0.90349,2767.2,2766.8,0.4053227]
[1643802674052,0.90349,2767.2,2766.9,1.8464684]
[1643802674451,0.90349,2767.2,2766.6,1.023]
[1643802674653,1.80706,2767.2,2766.6,0.5]
[1643802675457,1.80706,2767.2,2766.6,0.92679412]
[1643802675651,0.70925699,2767.1,2766.6,0.5]
[1643802675852,1.8072447,2767.0,2766.6,0.5]
[1643802676052,2.1072447,2767.0,2766.6,0.5]
[1643802677217,2.2879447,2767.0,2766.6,0.5]
[1643802678019,2.2879447,2767.0,2766.5,0.00190758]
[1643802678315,2.1072447,2767.0,2766.3,0.00190758]
[1643802678515,2.1072447,2767.0,2766.3,0.54792894]
[1643802683366,1.53328964,2766.9,2766.3,0.54792894]
[1643802684397,1.8072447,2767.0,2766.4,1.84674469]
[1643802684597,0.90363,2767.0,2766.3,0.54792894]
[1643802685198,1.83824389,2767.0,2766.3,0.54792894]
[1643802685599,2.13824389,2767.0,2766.3,0.54792894]
[1643802685802,1.53326822,2766.9,2766.3,0.54792894]
[1643802685999,2.43700822,2766.9,2766.3,0.54792894]
[1643802686197,0.90374,2766.9,2766.3,0.54792894]
[1643802686600,1.53330858,2766.8,2766.3,0.54792894]
[1643802686799,1.83330858,2766.8,2766.3,0.54792894]
[1643802687000,0.3,2766.8,2766.4,0.4142028]
[1643802687200,2.107475,2766.9,2766.4,0.4142028]
[1643802687400,1.53332007,2766.8,2766.4,0.4142028]
[1643802688169,2.35052007,2766.8,2766.4,0.4142028]
[1643802688375,0.8172,2766.8,2766.4,0.4142028]
[1643802690369,2.107475,2766.9,2766.4,0.4142028]
[1643802690570,1.53329559,2766.8,2766.4,0.4142028]
[1643802690974,2.107475,2766.9,2766.4,0.4142028]
[1643802691370,1.53328579,2766.8,2766.4,0.4142028]
[1643802693207,1.53328579,2766.8,2766.4,2.29718152]
[1643802693410,0.1807,2767.1,2766.6,0.4142028]
[1643802693617,0.1807,2767.6,2766.8,0.4142028]
[1643802693810,1.53311876,2767.5,2767.1,0.4142028]
[1643802694814,0.90354,2767.4,2767.1,0.4142028]
[1643802695012,1.83311876,2767.3,2767.1,0.4142028]
[1643802695213,1.53311876,2767.2,2767.1,0.4142028]
[1643802698060,1.53311876,2767.3,2767.1,0.4142028]
[1643802698259,1.53311876,2767.2,2767.1,0.4142028]
[1643802698663,1.53311876,2767.3,2767.1,0.4142028]
[1643802698867,1.53311876,2767.2,2767.1,0.4142028]
[1643802699406,1.53311876,2767.3,2767.1,0.4142028]
[1643802699604,1.53311876,2767.2,2767.1,0.4142028]
[1643802700103,1.53311876,2767.3,2767.1,0.4142028]
[1643802703060,1.53311876,2767.3,2767.2,0.4142028]
[1643802703262,1.83311876,2767.3,2767.2,0.4142028]
[1643802708011,1.83311876,2767.3,2766.7,0.4142028]
[1643802708209,1.53311876,2767.2,2766.7,0.4142028]
[1643802710213,1.53311876,2767.2,2766.9,0.4142028]
[1643802710457,2.43679566,2767.2,2766.9,0.4142028]
[1643802710656,2.73679566,2767.2,2766.9,0.4142028]
[1643802710856,1.53311876,2767.1,2766.9,0.4142028]
[1643802711258,1.83311876,2767.1,2766.9,0.4142028]
[1643802711458,1.53311876,2767.0,2766.9,0.4142028]
[1643802711865,1.83311876,2767.0,2766.9,0.4142028]
[1643802712057,2.73684396,2767.0,2766.9,0.4142028]
[1643802712259,2.43684396,2767.0,2766.9,0.4142028]
[1643802714203,2.43543338,2767.0,2766.9,0.4142028]
[1643802714604,1.53311876,2767.0,2766.9,0.4142028]
[1643802717306,0.9036172,2767.4,2766.9,0.4142028]
[1643802717506,1.53313757,2767.3,2766.9,0.4142028]
[1643802717958,1.53313757,2767.3,2767.0,0.4142028]
[1643802718561,2.43674757,2767.3,2767.0,0.4142028]
[1643802718763,1.53313757,2767.2,2767.0,0.4142028]
[1643802719162,2.43680997,2767.2,2767.0,0.4142028]
[1643802719361,1.53313757,2767.1,2767.0,0.4142028]
[1643802722708,1.83313757,2767.1,2767.0,0.4142028]
[1643802724313,1.53313757,2767.1,2767.0,0.4142028]
[1643802725015,1.53313757,2767.2,2767.0,0.4142028]
[1643802725217,1.53313757,2767.1,2767.0,0.4142028]
[1643802726052,2.05054,2767.7,2767.3,0.4142028]
[1643802726253,1.53311207,2767.6,2767.3,0.4142028]
[1643802728263,1.53311207,2767.6,2767.0,0.4142028]
[1643802729522,1.53311207,2767.6,2767.2,0.4142028]
[1643802730124,1.20354,2767.5,2767.2,0.4142028]
[1643802730324,1.53311207,2767.4,2767.2,0.4142028]
[1643802731523,1.83311207,2767.4,2767.2,0.4142028]
[1643802731726,1.53311207,2767.3,2767.2,0.4142028]
[1643802733867,1.83311207,2767.3,2767.2,0.4142028]
[1643802734364,1.83311207,2767.3,2766.8,3.5107]
[1643802734565,1.53311207,2767.2,2766.8,3.5107]
[1643802734765,1.53311207,2767.2,2766.8,0.4306]
[1643802734963,1.20361,2767.3,2766.8,0.4306]
[1643802734964,0.3,2767.3,2766.8,0.4306]
[1643802735169,0.3,2767.3,2766.8,0.25]
[1643802735866,0.84309099,2767.0,2766.8,0.25]
[1643802736069,0.84309099,2767.0,2766.6,0.00190758]
[1643802736268,1.14309099,2767.0,2766.6,0.00190758]
[1643802737406,4.75821999,2767.0,2766.6,0.00190758]
[1643802737604,1.80755,2766.9,2766.6,0.00190758]
[1643802737807,1.80755,2766.9,2766.4,3.21680758]
[1643802738008,1.8076,2766.8,2766.4,0.00190758]
[1643802738208,2.1076,2766.8,2766.4,0.00190758]
[1643802738408,2.1076,2766.8,2766.2,0.72895891]
[1643802738409,0.9038,2766.7,2766.2,0.72895891]
[1643802739307,0.9038,2766.7,2766.2,0.72705133]
[1643802739712,0.9038,2766.6,2766.2,0.72705133]
[1643802739914,0.1807,2766.5,2766.2,0.1807]
[1643802740108,1.80805,2766.4,2766.2,0.1807]
[1643802740313,3.61605,2766.4,2766.2,0.1807]
[1643802740567,0.3,2766.3,2766.2,0.1807]
[1643802741971,0.3,2766.3,2765.7,0.00190758]
[1643802742175,0.90398,2766.2,2765.7,0.00190758]
[1643802742573,0.9040012,2766.0,2765.7,0.00190758]
[1643802742776,0.9040012,2766.0,2765.6,3.2996]
[1643802743075,0.9040012,2766.0,2765.6,0.1807]
[1643802743477,0.90401,2765.9,2765.6,0.1807]
[1643802743677,0.9041266,2765.8,2765.5,0.25190758]
[1643802743976,0.3,2765.7,2765.5,0.25]
[1643802746318,0.3,2765.7,2765.3,0.00190758]
[1643802746618,2.7125352,2765.6,2765.1,0.00190758]
[1643802746818,0.90418,2765.4,2765.1,0.00190758]
[1643802747019,0.90418,2765.4,2765.0,0.25]
[1643802747319,0.90418,2765.4,2765.0,0.4307]
[1643802747820,1.8083898,2765.4,2765.0,0.4307]
[1643802748462,2.7125798,2765.4,2765.0,0.4307]
[1643802748760,0.90418,2765.4,2765.0,0.4307]
[1643802749959,1.8083907,2765.4,2765.0,0.4307]
[1643802750261,1.80836,2765.6,2765.0,0.25]
[1643802750461,1.08487,2765.7,2765.0,0.25]
[1643802750660,1.38487,2765.7,2765.0,0.25]
[1643802751061,0.4807,2765.7,2765.0,0.25]
[1643802751265,0.1807,2765.9,2765.0,0.4307]
[1643802751462,3.03232018,2766.0,2765.1,0.00190758]
[1643802751705,3.93642018,2766.0,2765.1,0.00190758]
[1643802752506,0.90413,2765.9,2765.1,0.00190758]
[1643802752706,2.08984117,2765.8,2765.1,0.00190758]
[1643802752905,0.90419,2765.7,2765.1,0.00190758]
[1643802753108,2.08984117,2765.8,2765.0,0.25]
[1643802753109,0.4807,2765.8,2765.0,0.25]
[1643802753513,0.1807,2765.8,2765.4,0.43455412]
[1643802753712,0.1807,2765.8,2765.1,1.92760512]
[1643802753713,0.1807,2766.1,2765.2,0.1807]
[1643802753909,0.13819997,2766.2,2765.2,1.3687]
[1643802754110,0.13819997,2766.2,2765.3,0.00190758]
[1643802754709,1.08241551,2766.2,2765.3,0.00190758]
[1643802755111,1.08241551,2766.2,2765.4,0.90392]
[1643802755311,1.08241551,2766.2,2765.5,0.00190758]
[1643802755565,0.1807,2766.1,2765.5,0.25190758]
[1643802755783,0.1807,2766.1,2765.5,0.25]
[1643802756173,1.08392626,2766.1,2765.5,0.25]
[1643802756372,0.9041,2766.0,2765.5,0.25]
[1643802756567,1.91698841,2765.9,2765.5,0.25]
[1643802756768,2.17195596,2765.9,2765.5,0.25]
[1643802757970,3.07611596,2765.9,2765.5,0.25]
[1643802758172,0.3,2765.8,2765.5,0.25]
[1643802758778,1.90667678,2765.7,2765.5,0.25]
[1643802759209,3.11085078,2765.7,2765.5,0.25]
[1643802759611,1.204174,2765.7,2765.5,0.25]
[1643802759812,2.82238387,2765.7,2765.5,0.25]
[1643802760214,0.904174,2765.7,2765.5,0.25]
[1643802761319,3.9861794,2765.9,2765.5,0.25]
[1643802762512,3.8054794,2765.9,2765.5,0.25]
[1643802763767,0.3,2765.8,2765.5,0.25]
[1643802763975,1.88095238,2765.7,2765.5,0.25]
[1643802764167,2.78513438,2765.7,2765.5,0.25]
[1643802765367,0.904182,2765.7,2765.5,0.25]
[1643802766376,1.91924398,2765.9,2765.5,0.25]
[1643802766574,2.22600744,2766.1,2765.5,0.25]
[1643802766805,2.82600744,2766.1,2765.5,0.25]
[1643802767906,0.90413,2766.0,2765.5,0.25]
[1643802768111,2.91638987,2765.9,2765.5,0.25]
[1643802769712,3.82055987,2765.9,2765.5,0.25]
[1643802770012,0.90418,2765.8,2765.5,0.25]
[1643802770213,2.89235131,2765.7,2765.5,0.25]
[1643802770473,1.88580596,2765.6,2765.5,0.25]
[1643802770657,0.9042184,2765.7,2765.5,0.25]
[1643802774621,0.90417,2765.9,2765.5,0.25]
[1643802774622,1.8082871,2765.9,2765.5,0.25]
[1643802776127,1.89069057,2765.8,2765.5,0.25]
[1643802776730,2.79489057,2765.8,2765.5,0.25]
[1643802777834,1.8082871,2765.9,2765.5,0.25]
[1643802779376,1.53376982,2765.8,2765.5,0.25]
[1643802781813,1.83376982,2765.8,2765.5,0.25]
[1643802782014,1.53376982,2765.7,2765.5,0.25]
[1643802782614,1.80824,2766.0,2765.5,0.25]
[1643802782814,1.53374882,2765.9,2765.5,0.25]
[1643802783616,1.8880825,2765.8,2765.5,0.25]
[1643802783817,1.53374882,2765.7,2765.5,0.25]
[1643802784015,2.43791882,2765.7,2765.5,0.25]
[1643802784218,1.53374882,2765.6,2765.5,0.25]
[1643802784618,3.49665453,2765.6,2765.5,0.25]
[1643802785018,1.53374882,2765.6,2765.5,0.25]
[1643802785657,1.53374882,2765.6,2765.3,0.25]
[1643802787063,1.53245359,2765.6,2765.3,0.25]
[1643802789309,3.64087359,2765.6,2765.3,0.25]
[1643802789513,1.20421,2765.6,2765.3,0.25]
[1643802790118,2.1083668,2765.6,2765.3,0.25]
[1643802790518,3.0125468,2765.6,2765.3,0.25]
[1643802791718,3.3125468,2765.6,2765.3,0.25]
[1643802792963,2.4083368,2765.6,2765.3,0.25]
[1643802793665,1.5041568,2765.6,2765.3,0.25]
[1643802794266,1.0846686,2765.9,2765.3,1.15396]
[1643802794468,0.91830892,2766.5,2765.4,0.1807]
[1643802794469,0.1807,2766.1,2765.4,0.1807]
[1643802794769,0.1807,2766.4,2765.5,0.91386053]
[1643802794968,2.0,2766.6,2765.5,0.00190758]
[1643802794969,2.86943169,2766.6,2765.5,0.00190758]
[1643802795169,0.91830892,2766.9,2765.5,0.91576811]
[1643802795170,0.68873169,2766.7,2765.5,0.91576811]
[1643802795374,2.1807,2766.8,2765.5,0.91576811]
[1643802795375,1.8076814,2766.4,2765.5,0.90580758]
[1643802795667,1.8076814,2766.4,2765.6,0.00190758]
[1643802795668,0.79524983,2766.1,2765.6,0.00190758]
[1643802796067,1.09524983,2766.1,2765.6,0.00093228]
[1643802796812,1.39524983,2766.1,2765.6,0.00093228]
[1643802797015,0.9039698,2766.0,2765.6,0.00093228]
[1643802797212,0.9039698,2766.0,2765.4,1.38633228]
[1643802798021,0.9039698,2766.0,2765.5,0.90391]
[1643802798617,1.2039698,2766.0,2765.4,1.38633228]
[1643802798817,1.5039698,2766.0,2765.4,1.38633228]
[1643802799421,1.5039698,2766.0,2765.5,0.90391]
[1643802799818,1.2039698,2766.0,2765.5,0.90391]
[1643802800873,1.2039698,2766.0,2765.4,1.38633228]
[1643802801269,0.9039698,2766.0,2765.4,1.38633228]
[1643802803378,1.5039698,2766.0,2765.4,1.38633228]
[1643802803780,3.42101698,2766.0,2765.4,1.38633228]
[1643802803980,0.9039952,2765.8,2765.4,1.38633228]
[1643802804214,0.9039952,2765.8,2765.4,1.20563228]
[1643802804418,0.1807,2766.0,2765.4,0.00093228]
[1643802804618,0.79524983,2766.1,2765.4,0.00093228]
[1643802804920,1.09524983,2766.1,2765.4,0.00093228]
[1643802805120,0.79524983,2766.1,2765.4,0.91479281]
[1643802805317,0.79524983,2766.1,2765.4,0.00093228]
[1643802806020,0.9039354,2766.0,2765.4,0.00093228]
[1643802806220,0.9039354,2766.0,2765.4,0.90485228]
[1643802806423,1.2039354,2766.0,2765.4,0.90485228]
[1643802806835,0.9039354,2766.0,2765.4,0.90485228]
[1643802807225,1.08464,2766.2,2765.4,0.90485228]
[1643802807226,1.53360996,2765.9,2765.4,1.08555228]
[1643802807424,1.0845724,2766.2,2765.4,1.99941281]
[1643802807624,1.53353961,2766.1,2765.5,0.91386053]
[1643802807823,1.53353961,2766.1,2765.6,0.90382]
[1643802808067,0.1807,2766.5,2765.7,2.03344012]
[1643802808269,1.533497,2766.4,2765.9,0.25]
[1643802808482,0.1807,2766.3,2766.0,1.85765057]
[1643802808765,1.533497,2766.2,2765.9,0.25]
[1643802808965,1.533497,2766.2,2765.9,2.15994263]
[1643802809165,1.0845125,2766.4,2765.9,2.15994263]
[1643802809366,1.53348933,2766.3,2765.9,2.15994263]
[1643802811266,1.53348933,2766.3,2765.9,0.25]